bitfinex-derivatives/quotes_SOLF0:USTF0_20250117
["timestamp","ask_amount","ask_price","bid_price","bid_amount"]
[1737155224009,4.5544,219.49,219.46,4.5549]
[1737155224508,11.12364297,219.52,219.46,11.57427699]
[1737155225108,4.5542,219.5,219.46,11.57427699]
[1737155229314,4.10426598,219.52,219.46,7.01937699]
[1737155229610,4.10426598,219.52,219.5,7.01937699]
[1737155230711,4.10426598,219.52,219.48,7.01937699]
[1737155231416,4.10426598,219.52,219.5,4.5541]
[1737155239909,7.01937699,219.51,219.37,7.045]
[1737155240112,4.10426598,219.52,219.43,7.01937699]
[1737155240113,7.01937699,219.49,219.43,7.01937699]
[1737155240512,7.01937699,219.49,219.45,4.555]
[1737155240513,11.57377699,219.49,219.45,4.555]
[1737155240918,11.57377699,219.49,219.43,7.01937699]
[1737155242218,11.57377699,219.49,219.46,4.5549]
[1737155243319,7.01937699,219.49,219.46,4.5549]
[1737155243519,7.01937699,219.51,219.45,7.01937699]
[1737155243910,11.57337699,219.51,219.45,7.01937699]
[1737155245220,11.57337699,219.51,219.47,4.5546]
[1737155247415,4.5542,219.5,219.47,4.5546]
[1737155250421,11.57337699,219.51,219.47,4.5546]
[1737155251418,7.01937699,219.51,219.47,4.5546]
[1737155251621,4.5542,219.5,219.47,4.5546]
[1737155255426,7.01937699,219.51,219.45,7.01937699]
[1737155255620,4.554,219.51,219.48,4.5546]
[1737155255926,4.554,219.51,219.45,7.01937699]
[1737155256628,4.554,219.51,219.47,4.5546]
[1737155258226,4.554,219.51,219.47,11.57397699]
[1737155258430,4.554,219.51,219.48,4.5544]
[1737155261526,8.65806598,219.52,219.49,4.5543]
[1737155262530,4.10426598,219.52,219.49,4.5543]
[1737155263923,8.65806598,219.52,219.49,4.5543]
[1737155264129,11.12364297,219.52,219.46,4.5548]
[1737155264729,11.12364297,219.52,219.45,7.01937699]
[1737155264930,4.5542,219.5,219.47,4.5548]
[1737155265131,11.12364297,219.52,219.47,4.5548]
[1737155267134,4.5541,219.51,219.47,4.5548]
[1737155267526,7.01937699,219.5,219.37,20.24253924]
[1737155267732,11.57417699,219.48,219.42,4.5557]
[1737155267934,7.01937699,219.48,219.42,4.5557]
[1737155269134,4.555,219.47,219.42,4.5557]
[1737155270231,7.01937699,219.46,219.42,4.5557]
[1737155270730,7.01937699,219.46,219.39,7.01937699]
[1737155270936,7.01937699,219.5,219.45,4.5552]
[1737155272137,11.57357699,219.5,219.45,4.5552]
[1737155272337,7.01937699,219.5,219.43,7.01937699]
[1737155272537,11.12364297,219.52,219.48,4.5546]
[1737155273335,11.12364297,219.52,219.45,7.01937699]
[1737155273638,11.12364297,219.52,219.49,4.5543]
[1737155274439,4.10426598,219.52,219.5,4.554]
[1737155278041,4.10426598,219.52,219.47,7.01937699]
[1737155278243,4.10426598,219.52,219.51,4.554]
[1737155281040,4.10426598,219.52,219.51,11.57337699]
[1737155282742,4.10426598,219.52,219.51,4.554]
[1737155283636,11.57177699,219.59,219.5,7.01937699]
[1737155283843,11.57177699,219.59,219.53,7.01937699]
[1737155284244,4.5521,219.6,219.53,7.01937699]
[1737155284439,7.01937699,219.59,219.53,7.01937699]
[1737155284945,4.5525,219.58,219.45,4.6354]
[1737155285144,7.01937699,219.57,219.5,7.01937699]
[1737155285444,7.01937699,219.57,219.52,4.5536]
[1737155285643,11.57227699,219.57,219.52,4.5536]
[1737155288748,11.57227699,219.57,219.53,4.5535]
[1737155289645,4.5534,219.54,219.46,2.4485]
[1737155289843,7.01937699,219.53,219.46,9.46787699]
[1737155290045,4.5534,219.54,219.48,7.01937699]
[1737155292246,4.5534,219.54,219.51,4.5539]
[1737155293950,7.01937699,219.55,219.51,4.5539]
[1737155294143,11.57257699,219.55,219.51,4.5539]
[1737155297645,4.5532,219.55,219.52,4.5537]
[1737155298849,7.01937699,219.57,219.5,7.01937699]
[1737155299250,7.01937699,219.59,219.52,7.01937699]
[1737155299649,4.78,219.6,219.52,7.01937699]
[1737155299650,11.79937699,219.6,219.52,7.01937699]
[1737155299849,0.83704547,219.59,219.52,7.01937699]
[1737155300150,4.5528,219.57,219.54,4.5533]
[1737155302856,11.57187699,219.59,219.55,4.553]
[1737155305254,4.5525,219.58,219.55,4.553]
[1737155306051,4.5534,219.54,219.5,4.554]
[1737155306247,11.57277699,219.54,219.5,4.554]
[1737155308256,7.01937699,219.54,219.51,4.5539]
[1737155308453,7.01937699,219.56,219.49,7.01937699]
[1737155309057,4.5532,219.55,219.51,4.5539]
[1737155311155,4.5534,219.54,219.51,4.5539]
[1737155311558,4.5538,219.52,219.48,4.5545]
[1737155312849,4.78,219.62,219.5,4.554]
[1737155313051,7.01937699,219.55,219.5,4.554]
[1737155313854,4.5534,219.54,219.5,4.554]
[1737155318064,7.01937699,219.53,219.48,4.5544]
[1737155318266,7.01937699,219.51,219.44,7.01937699]
[1737155319365,11.57347699,219.51,219.46,4.5548]
[1737155320561,11.57377699,219.49,219.44,4.5552]
[1737155320762,7.01937699,219.49,219.44,4.5552]
[1737155322063,4.5546,219.48,219.44,4.5552]
[1737155325758,4.5548,219.47,219.44,4.5552]
[1737155327459,7.01937699,219.49,219.44,4.5552]
[1737155327763,4.5546,219.48,219.44,4.5552]
[1737155327968,4.78,219.53,219.47,4.5546]
[1737155328167,4.554,219.51,219.47,4.5546]
[1737155328468,4.78,219.53,219.46,7.01937699]
[1737155328668,4.5532,219.55,219.5,4.554]
[1737155329167,4.5532,219.55,219.48,7.01937699]
[1737155329364,4.5532,219.55,219.51,4.5539]
[1737155330763,7.01937699,219.56,219.5,7.01937699]
[1737155330970,11.39091371,219.58,219.5,7.01937699]
[1737155331166,11.39091371,219.58,219.52,7.01937699]
[1737155332069,11.39091371,219.58,219.54,4.5533]
[1737155332470,4.37153672,219.58,219.54,7.01937699]
[1737155332869,4.37153672,219.58,219.55,4.5531]
[1737155333069,4.37153672,219.58,219.54,7.01937699]
[1737155333672,11.39091371,219.58,219.43,2.4546]
[1737155333881,11.39091371,219.58,219.51,7.01937699]
[1737155335085,4.37153672,219.58,219.53,7.01937699]
[1737155335786,4.37153672,219.58,219.56,4.5527]
[1737155337478,4.37153672,219.58,219.57,4.5527]
[1737155339887,4.37153672,219.58,219.55,4.5529]
[1737155351701,4.5523,219.6,219.55,4.5529]
[1737155351897,11.57167699,219.6,219.55,4.5529]
[1737155352092,4.5523,219.6,219.55,4.5529]
[1737155352297,11.57167699,219.6,219.55,4.5529]
[1737155356704,4.5523,219.6,219.55,4.5529]
[1737155356902,7.01937699,219.59,219.55,4.5529]
[1737155357099,4.5523,219.6,219.55,4.5529]
[1737155357302,7.01937699,219.59,219.55,4.5529]
[1737155358705,11.57167699,219.59,219.55,4.5529]
[1737155364412,4.5523,219.59,219.55,4.5529]
[1737155370709,11.57167699,219.59,219.55,4.5529]
[1737155371518,7.01937699,219.57,219.44,25.47655696]
[1737155371712,7.01937699,219.55,219.47,7.01937699]
[1737155371913,7.01937699,219.53,219.44,25.47655696]
[1737155372112,11.57337699,219.51,219.47,4.5548]
[1737155378623,4.554,219.51,219.47,4.5548]
[1737155380022,4.5544,219.5,219.45,4.5552]
[1737155380327,4.5544,219.5,219.44,7.01937699]
[1737155380824,4.5544,219.5,219.45,4.5552]
[1737155385528,4.5544,219.49,219.45,4.5552]
[1737155386329,4.5542,219.5,219.46,4.555]
[1737155390836,4.5541,219.51,219.47,4.5547]
[1737155391632,4.5542,219.5,219.46,4.555]
[1737155391838,7.01937699,219.52,219.45,7.01937699]
[1737155393229,4.5542,219.5,219.46,4.555]
[1737155398343,7.01937699,219.52,219.45,7.01937699]
[1737155398544,71.06,219.59,219.47,7.01937699]
[1737155398738,7.01937699,219.54,219.49,7.01937699]
[1737155398944,7.01937699,219.56,219.49,7.01937699]
[1737155399144,11.57237699,219.56,219.51,4.5538]
[1737155400739,7.01937699,219.52,219.4,4.743]
[1737155401041,7.01937699,219.52,219.45,7.01937699]
[1737155401243,11.57317699,219.52,219.47,11.57397699]
[1737155401444,7.01937699,219.54,219.47,7.01937699]
[1737155402044,4.5533,219.54,219.49,11.57357699]
[1737155402742,7.01937699,219.56,219.49,7.01937699]
[1737155402941,11.57237699,219.56,219.52,4.5537]
[1737155403439,11.57187699,219.58,219.54,4.5533]
[1737155404545,71.06,219.59,219.51,7.01937699]
[1737155404740,71.06,219.59,219.55,4.5531]
[1737155405243,71.06,219.59,219.53,7.01937699]
[1737155406241,71.06,219.59,219.56,4.5529]
[1737155406841,71.06,219.59,219.55,7.01937699]
[1737155407145,71.06,219.59,219.57,4.5526]
[1737155407349,71.06,219.59,219.55,7.01937699]
[1737155408051,71.06,219.59,219.58,4.5525]
[1737155408738,4.37019351,219.65,219.55,7.01937699]
[1737155408947,8.92129351,219.65,219.61,4.5518]
[1737155409745,8.92129351,219.65,219.6,7.01937699]
[1737155409746,4.37019351,219.65,219.62,4.5517]
[1737155411542,4.37019351,219.65,219.6,7.01937699]
[1737155411749,4.37019351,219.65,219.61,4.5518]
[1737155412748,11.3895705,219.65,219.61,4.5518]
[1737155417858,15.9406705,219.65,219.61,4.5518]
[1737155421757,4.37019351,219.65,219.6,7.01937699]
[1737155421959,4.37019351,219.65,219.64,4.5513]
[1737155423563,4.37019351,219.65,219.62,11.57087699]
[1737155423865,4.37019351,219.65,219.62,7.01937699]
[1737155424058,8.92129351,219.65,219.61,11.57127699]
[1737155426469,4.37019351,219.65,219.64,4.5513]
[1737155426664,62.2381762,219.71,219.63,7.01937699]
[1737155426863,7.01937699,219.75,219.68,7.01937699]
[1737155427264,4.5492,219.74,219.69,4.5501]
[1737155427968,4.5492,219.74,219.7,7.01937699]
[1737155428866,7.01937699,219.75,219.68,7.01937699]
[1737155429172,78.07937699,219.73,219.66,7.01937699]
[1737155429366,78.07937699,219.73,219.68,7.01937699]
[1737155429567,7.01937699,219.77,219.7,7.01937699]
[1737155429768,0.83642178,219.76,219.72,7.01937699]
[1737155429965,4.549,219.75,219.72,7.01937699]
[1737155430170,55.42992389,219.86,219.72,7.01937699]
[1737155430370,7.01937699,219.78,219.72,7.01937699]
[1737155430573,5.38508964,219.77,219.72,7.01937699]
[1737155430771,4.5487,219.77,219.72,7.01937699]
[1737155432069,7.01937699,219.78,219.72,7.01937699]
[1737155432264,7.01937699,219.78,219.7,11.56937699]
[1737155433177,4.549,219.75,219.7,11.56937699]
[1737155435469,4.5495,219.73,219.68,4.5504]
[1737155436977,7.01937699,219.74,219.68,4.5504]
[1737155437178,4.5497,219.72,219.68,4.5504]
[1737155438477,3.0289,219.84,219.71,7.01937699]
[1737155438683,7.85575012,219.81,219.75,7.01937699]
[1737155438882,0.83637313,219.8,219.75,7.01937699]
[1737155439375,0.83637313,219.79,219.75,7.01937699]
[1737155439581,0.83631832,219.78,219.75,7.01937699]
[1737155439883,7.01937699,219.81,219.75,7.01937699]
[1737155440182,0.83631848,219.8,219.75,7.01937699]
[1737155440882,4.5484,219.79,219.75,11.56837699]
[1737155442584,4.548,219.8,219.77,7.01937699]
[1737155442884,4.32659826,219.82,219.77,7.01937699]
[1737155443080,0.83622519,219.81,219.77,7.01937699]
[1737155443787,4.32659826,219.82,219.77,7.01937699]
[1737155444188,4.5478,219.81,219.77,7.01937699]
[1737155446377,4.32659826,219.82,219.79,7.01937699]
[1737155447788,8.87409826,219.82,219.79,7.01937699]
[1737155448292,4.32659826,219.82,219.81,7.01937699]
[1737155448490,4.5474,219.83,219.81,7.01937699]
[1737155448887,4.5472,219.84,219.81,7.01937699]
[1737155451092,4.547,219.85,219.83,7.01937699]
[1737155451286,4.547,219.85,219.84,7.01937699]
[1737155453193,13.8494,219.96,219.84,7.01937699]
[1737155453390,7.01937699,219.91,219.84,7.01937699]
[1737155454091,4.547,219.85,219.84,7.01937699]
[1737155454888,7.01937699,219.87,219.69,2.985]
[1737155455090,7.01937699,219.87,219.81,7.01937699]
[1737155455993,4.5475,219.82,219.81,7.01937699]
[1737155456192,7.01937699,219.87,219.7,4.76]
[1737155456393,7.01937699,219.87,219.8,7.01937699]
[1737155456594,4.5477,219.81,219.8,7.01937699]
[1737155460596,4.5488,219.76,219.69,2.985]
[1737155461096,4.5488,219.76,219.73,4.5494]
[1737155465793,4.5488,219.76,219.75,7.01937699]
[1737155469699,4.5488,219.76,219.73,4.5494]
[1737155469898,4.5488,219.76,219.75,7.01937699]
[1737155474905,4.5491,219.75,219.72,4.5496]
[1737155475204,4.5491,219.75,219.74,7.01937699]
[1737155475504,4.55,219.7,219.69,7.01937699]
[1737155478296,4.5504,219.69,219.68,7.01937699]
[1737155480202,2.9215,219.79,219.68,7.01937699]
[1737155480408,1.4877,219.79,219.74,7.01937699]
[1737155480609,4.5488,219.77,219.73,4.5494]
[1737155480801,4.5488,219.77,219.75,7.01937699]
[1737155481207,1.4877,219.79,219.75,7.01937699]
[1737155481411,4.5488,219.76,219.75,7.01937699]
[1737155481611,1.4877,219.79,219.73,7.01937699]
[1737155481909,8.50707699,219.79,219.73,7.01937699]
[1737155482307,8.50707699,219.79,219.62,2.9901]
[1737155482508,7.01937699,219.77,219.7,7.01937699]
[1737155483412,4.5497,219.72,219.68,4.5504]
[1737155483710,4.5497,219.72,219.7,7.01937699]
[1737155483906,7.01937699,219.77,219.7,7.01937699]
[1737155484213,4.5494,219.74,219.72,7.01937699]
[1737155486911,1.4877,219.79,219.72,7.01937699]
[1737155487110,4.5488,219.77,219.74,7.01937699]
[1737155487615,7.01937699,219.81,219.73,4.5492]
[1737155487816,4.5488,219.76,219.74,7.01937699]
[1737155488115,7.01937699,219.79,219.74,7.01937699]
[1737155488506,4.5494,219.74,219.72,7.01937699]
[1737155488711,7.01937699,219.77,219.7,11.56937699]
[1737155489313,7.01937699,219.77,219.62,7.7501]
[1737155489514,7.01937699,219.77,219.69,4.5502]
[1737155489714,7.01937699,219.77,219.69,11.56957699]
[1737155489915,4.5498,219.72,219.69,11.56957699]
[1737155490319,7.01937699,219.75,219.62,7.7501]
[1737155490618,4.5499,219.71,219.67,7.01937699]
[1737155491021,4.55,219.71,219.67,7.01937699]
[1737155491724,4.55,219.71,219.67,11.56997699]
[1737155493327,4.55,219.71,219.68,4.5504]
[1737155495126,7.01937699,219.75,219.67,7.01937699]
[1737155495331,4.5501,219.7,219.67,11.56997699]
[1737155496326,4.5499,219.71,219.69,7.01937699]
[1737155496723,4.5499,219.71,219.68,4.5504]
[1737155497623,4.5501,219.7,219.67,11.56997699]
[1737155501122,4.76,219.79,219.69,7.01937699]
[1737155501329,4.5496,219.73,219.69,11.56947699]
[1737155502028,4.5496,219.73,219.7,7.01937699]
[1737155502823,4.5502,219.69,219.66,4.5508]
[1737155503030,4.5502,219.69,219.66,11.57017699]
[1737155503324,4.76,219.79,219.66,11.57017699]
[1737155503325,7.01937699,219.72,219.66,7.01937699]
[1737155503523,4.5505,219.68,219.65,4.551]
[1737155503721,7.01937699,219.7,219.64,7.01937699]
[1737155504119,4.5507,219.67,219.64,7.01937699]
[1737155506123,7.01937699,219.7,219.64,7.01937699]
[1737155506323,7.01937699,219.68,219.62,7.01937699]
[1737155506829,4.5512,219.65,219.62,7.01937699]
[1737155508433,7.01937699,219.68,219.62,7.01937699]
[1737155508632,4.5514,219.64,219.62,7.01937699]
[1737155508931,4.5514,219.64,219.6,4.5519]
[1737155508932,7.01937699,219.66,219.6,7.01937699]
[1737155510428,4.5517,219.63,219.59,4.5523]
[1737155512325,7.01937699,219.66,219.59,4.5523]
[1737155512534,4.5517,219.62,219.59,4.5523]
[1737155518229,4.5688,219.74,219.59,4.5523]
[1737155518230,7.01937699,219.66,219.59,7.01937699]
[1737155518433,4.5511,219.65,219.62,4.5516]
[1737155519133,7.01937699,219.68,219.63,4.5514]
[1737155519338,4.5509,219.66,219.63,4.5514]
[1737155519638,7.01937699,219.68,219.61,4.5518]
[1737155519838,7.01937699,219.68,219.61,11.57117699]
[1737155520041,4.5512,219.65,219.61,11.57117699]
[1737155520840,4.5512,219.65,219.62,4.5516]
[1737155528543,7.01937699,219.68,219.61,7.01937699]
[1737155528846,4.5509,219.66,219.63,4.5514]
[1737155533948,3.0409,219.74,219.64,7.01937699]
[1737155534149,7.01937699,219.75,219.69,7.01937699]
[1737155534351,7.01937699,219.77,219.71,7.01937699]
[1737155536345,11.56797699,219.77,219.73,4.5493]
[1737155540754,6.3238,219.84,219.62,9.1033]
[1737155540959,7.01937699,219.78,219.73,7.01937699]
[1737155541355,7.01937699,219.78,219.75,4.5488]
[1737155542357,7.01937699,219.78,219.73,7.01937699]
[1737155542558,7.01937699,219.78,219.76,4.5488]
[1737155543559,4.5482,219.79,219.76,4.5488]
[1737155543862,7.01937699,219.8,219.76,4.5488]
[1737155544155,11.56737699,219.8,219.76,4.5488]
[1737155544357,3.022,219.89,219.79,4.548]
[1737155544556,4.5473,219.84,219.78,7.01937699]
[1737155544757,11.56667699,219.84,219.78,7.01937699]
[1737155545059,11.56667699,219.84,219.81,4.5477]
[1737155545455,11.56667699,219.84,219.79,4.548]
[1737155546958,11.56667699,219.84,219.8,4.5479]
[1737155547352,11.56667699,219.84,219.78,7.01937699]
[1737155547563,4.5473,219.84,219.81,4.5477]
[1737155547759,7.01937699,219.86,219.78,7.01937699]
[1737155547960,11.56607699,219.86,219.82,4.5475]
[1737155551164,4.5467,219.86,219.82,4.5475]
[1737155551367,11.56607699,219.86,219.82,4.5475]
[1737155552761,4.5467,219.86,219.82,4.5475]
[1737155553065,7.01937699,219.85,219.82,4.5475]
[1737155554068,4.5467,219.86,219.82,4.5475]
[1737155554266,7.01937699,219.85,219.82,4.5475]
[1737155555474,7.01937699,219.83,219.79,4.548]
[1737155555672,7.01937699,219.8,219.79,4.548]
[1737155560281,11.56697699,219.82,219.79,4.548]
[1737155561379,7.01937699,219.87,219.8,7.01937699]
[1737155561581,11.56607699,219.87,219.84,4.5471]
[1737155564688,4.5467,219.86,219.83,4.5473]
[1737155565588,4.5467,219.86,219.84,4.5471]
[1737155565788,11.56597699,219.87,219.84,4.5471]
[1737155565988,7.01937699,219.85,219.84,4.5471]
[1737155566988,11.56597699,219.87,219.84,4.5471]
[1737155567681,4.5466,219.87,219.84,4.5471]
[1737155574396,7.01937699,219.88,219.86,4.5465]
[1737155574696,4.09282586,219.9,219.83,7.01937699]
[1737155574697,11.11220285,219.9,219.83,7.01937699]
[1737155574904,11.56667699,219.84,219.79,4.548]
[1737155575093,7.01937699,219.8,219.77,1.4714]
[1737155575295,7.01937699,219.8,219.71,1.5739]
[1737155575500,11.56737699,219.8,219.72,7.01937699]
[1737155577099,7.01937699,219.8,219.72,7.01937699]
[1737155577302,7.01937699,219.78,219.7,8.48457699]
[1737155577505,7.01937699,219.76,219.7,8.48457699]
[1737155578003,7.01937699,219.76,219.73,4.5493]
[1737155578898,4.5486,219.77,219.74,4.5492]
[1737155579603,4.548,219.8,219.75,4.5488]
[1737155579903,11.56737699,219.8,219.75,4.5488]
[1737155580205,11.56797699,219.78,219.74,4.5492]
[1737155581005,7.01937699,219.76,219.73,4.5494]
[1737155581605,7.01937699,219.76,219.7,7.01937699]
[1737155581802,7.01937699,219.76,219.74,4.5492]
[1737155582204,7.01937699,219.78,219.67,1.5025]
[1737155582403,4.5491,219.75,219.71,4.5498]
[1737155584607,4.5491,219.75,219.72,4.5496]
[1737155585703,4.5493,219.74,219.71,4.5498]
[1737155586107,7.01937699,219.72,219.57,50.95311394]
[1737155586302,7.01937699,219.69,219.62,7.01937699]
[1737155586607,7.01937699,219.69,219.66,4.5507]
[1737155588209,7.01937699,219.69,219.67,4.5506]
[1737155588410,7.01937699,219.69,219.64,7.01937699]
[1737155588609,11.56917699,219.71,219.64,7.01937699]
[1737155588814,2.9176,219.75,219.66,7.01937699]
[1737155589012,11.56857699,219.74,219.68,7.01937699]
[1737155589611,11.56857699,219.74,219.7,4.5498]
[1737155590207,11.56857699,219.74,219.68,7.01937699]
[1737155590208,7.01937699,219.74,219.68,7.01937699]
[1737155590614,11.56827699,219.76,219.68,7.01937699]
[1737155591113,11.56827699,219.76,219.72,4.5495]
[1737155592108,7.01937699,219.76,219.72,4.5495]
[1737155592306,4.549,219.75,219.72,4.5495]
[1737155593513,4.549,219.75,219.71,4.5498]
[1737155593913,7.01937699,219.72,219.66,7.01937699]
[1737155594106,4.74,219.8,219.66,7.01937699]
[1737155594307,7.01937699,219.74,219.66,7.01937699]
[1737155594520,11.56877699,219.74,219.7,4.5499]
[1737155595118,4.5494,219.73,219.7,4.5499]
[1737155596615,7.01937699,219.74,219.68,7.01937699]
[1737155596819,7.01937699,219.76,219.72,4.5494]
[1737155598119,4.549,219.75,219.72,4.5494]
[1737155605422,7.01937699,219.74,219.72,4.5494]
[1737155613121,7.01937699,219.74,219.6,6.36913924]
[1737155613327,4.5499,219.71,219.68,4.5504]
[1737155613627,7.01937699,219.69,219.68,4.5504]
[1737155615222,4.5505,219.68,219.58,1.5506]
[1737155615429,7.01937699,219.67,219.6,7.01937699]
[1737155616327,7.01937699,219.67,219.65,4.5511]
[1737155618329,13.67,219.8,219.62,7.01937699]
[1737155618528,7.01937699,219.74,219.67,7.01937699]
[1737155619528,7.01937699,219.74,219.71,4.5497]
[1737155627037,4.5494,219.73,219.7,4.55]
[1737155627336,7.01937699,219.74,219.67,7.01937699]
[1737155627939,7.01937699,219.74,219.71,4.5497]
[1737155630336,7.01937699,219.72,219.71,4.5497]
[1737155641044,4.5498,219.71,219.67,4.5505]
[1737155641246,7.01937699,219.68,219.58,17.02453924]
[1737155641449,7.01937699,219.68,219.62,7.01937699]
[1737155642449,7.01937699,219.68,219.67,4.5506]
[1737155643947,4.5502,219.7,219.68,4.5504]
[1737155644147,11.56957699,219.7,219.68,4.5504]
[1737155646656,4.5492,219.75,219.71,4.5497]
[1737155646848,7.01937699,219.74,219.71,4.5497]
[1737155648047,11.56857699,219.74,219.71,4.5497]
[1737155650756,4.5492,219.74,219.71,4.5497]
[1737155650956,7.01937699,219.73,219.71,4.5497]
[1737155651452,7.01937699,219.73,219.69,4.5501]
[1737155651652,7.01937699,219.73,219.6,9.1041]
[1737155652255,4.74,219.79,219.67,7.01937699]
[1737155652453,7.01937699,219.73,219.67,7.01937699]
[1737155653158,7.01937699,219.73,219.71,4.5497]
[1737155653457,4.5492,219.74,219.71,4.5497]
[1737155653658,11.56857699,219.74,219.71,4.5497]
[1737155655660,7.01937699,219.73,219.71,4.5497]
[1737155656159,4.5492,219.74,219.71,4.5497]
[1737155656461,7.01937699,219.73,219.71,4.5497]
[1737155656861,4.74,219.78,219.67,7.01937699]
[1737155657058,7.01937699,219.74,219.67,7.01937699]
[1737155658057,7.01937699,219.74,219.71,4.5496]
[1737155658262,7.01937699,219.74,219.67,7.01937699]
[1737155659162,7.01937699,219.74,219.72,4.5496]
[1737155659363,1.5234,219.83,219.71,7.01937699]
[1737155659565,7.01937699,219.79,219.73,7.01937699]
[1737155661063,7.01937699,219.79,219.77,4.5484]
[1737155661565,7.01937699,219.79,219.73,7.01937699]
[1737155661867,7.01937699,219.81,219.75,7.01937699]
[1737155663065,7.01937699,219.81,219.8,4.5478]
[1737155664563,71.0,219.86,219.69,1.4726]
[1737155664766,7.01937699,219.8,219.78,4.5482]
[1737155665567,7.01937699,219.8,219.77,4.5485]
[1737155665767,7.01937699,219.78,219.77,4.5485]
[1737155666267,7.01937699,219.8,219.74,7.01937699]
[1737155666768,7.01937699,219.8,219.79,4.5482]
[1737155668466,7.01937699,219.8,219.77,4.5485]
[1737155669668,7.01937699,219.8,219.78,4.5484]
[1737155670359,7.01937699,219.8,219.73,7.01937699]
[1737155670360,4.5488,219.76,219.73,4.5493]
[1737155670666,7.01937699,219.74,219.73,4.5493]
[1737155671266,7.01937699,219.74,219.68,3.1131]
[1737155671466,7.01937699,219.72,219.68,3.1131]
[1737155672366,7.01937699,219.72,219.71,4.5498]
[1737155672568,7.01937699,219.74,219.68,3.1131]
[1737155674167,7.01937699,219.74,219.73,4.5494]
[1737155674570,7.01937699,219.75,219.73,4.5494]
[1737155675564,11.56837699,219.75,219.72,4.5496]
[1737155675771,7.01937699,219.73,219.72,4.5496]
[1737155676365,7.01937699,219.75,219.68,10.13247699]
[1737155676559,7.01937699,219.75,219.73,4.5493]
[1737155677066,84.66,219.86,219.68,10.13247699]
[1737155677067,71.0,219.86,219.68,10.13247699]
[1737155677266,7.01937699,219.78,219.72,7.01937699]
[1737155678164,7.01937699,219.79,219.77,4.5484]
[1737155683376,7.01937699,219.79,219.7,7.01937699]
[1737155683576,7.01937699,219.76,219.7,7.01937699]
[1737155684074,7.01937699,219.76,219.74,4.549]
[1737155685375,4.549,219.75,219.72,4.5494]
[1737155686374,4.74,219.84,219.68,1.566]
[1737155686375,4.5494,219.73,219.68,1.566]
[1737155686574,7.01937699,219.72,219.68,1.566]
[1737155687480,4.5494,219.73,219.7,4.5499]
[1737155687776,7.01937699,219.72,219.7,4.5499]
[1737155688578,7.01937699,219.72,219.68,4.5503]
[1737155688878,7.01937699,219.69,219.63,7.01937699]
[1737155689076,7.01937699,219.69,219.61,8.51057699]
[1737155690174,7.01937699,219.69,219.67,4.5506]
[1737155693486,7.01937699,219.69,219.59,8.59547699]
[1737155693677,3.0249,219.74,219.59,8.59547699]
[1737155693678,7.01937699,219.66,219.59,8.59547699]
[1737155694180,7.01937699,219.7,219.63,7.01937699]
[1737155694579,7.01937699,219.7,219.68,4.5504]
[1737155695583,7.01937699,219.7,219.6,7.01937699]
[1737155695786,7.01937699,219.66,219.6,7.01937699]
[1737155696377,7.01937699,219.68,219.6,7.01937699]
[1737155696679,7.01937699,219.68,219.62,7.01937699]
[1737155697082,7.01937699,219.68,219.63,4.5513]
[1737155697382,7.01937699,219.68,219.62,7.01937699]
[1737155697976,7.01937699,219.68,219.66,4.5507]
[1737155699885,7.01937699,219.68,219.6,7.01937699]
[1737155700188,7.01937699,219.66,219.6,7.01937699]
[1737155700481,7.01937699,219.62,219.56,8.54717699]
[1737155700686,7.01937699,219.62,219.56,7.01937699]
[1737155701386,4.74,219.72,219.6,7.01937699]
[1737155701782,4.5502,219.69,219.65,4.5509]
[1737155701978,7.01937699,219.68,219.65,4.5509]
[1737155702188,7.01937699,219.68,219.66,4.5508]
[1737155702783,7.01937699,219.68,219.57,7.01937699]
[1737155702987,7.01937699,219.61,219.55,7.01937699]
[1737155703688,7.01937699,219.61,219.6,4.5521]
[1737155703984,7.01937699,219.61,219.51,1.5215]
[1737155704290,7.01937699,219.56,219.54,4.5533]
[1737155704484,7.01937699,219.55,219.54,4.5533]
[1737155706786,7.01937699,219.55,219.48,30.25795173]
[1737155707687,7.01937699,219.55,219.52,4.5537]
[1737155710392,7.01937699,219.53,219.52,4.5537]
[1737155710894,7.01937699,219.53,219.5,4.554]
[1737155711091,7.01937699,219.51,219.45,7.01937699]
[1737155711494,7.01937699,219.51,219.48,4.5544]